lending/lending_fUSD_20250429
["ID","MTS","AMOUNT","RATE_DAILY","PERIOD"]
[359301140,1745901056970,-470.0,0.0003863,30]
[359301141,1745901056979,-470.0,0.0003863,30]
[359301142,1745901056989,-470.0,0.0003863,30]
[359301143,1745901056999,-470.0,0.0003863,30]
[359301144,1745901057008,-470.0,0.0003863,30]
[359301145,1745901057018,-470.0,0.0003863,30]
[359301146,1745901057028,-470.0,0.0003863,30]
[359301147,1745901057038,-470.0,0.0003863,30]
[359301148,1745901057048,-470.0,0.0003863,30]
[359301149,1745901057058,-474.0459775,0.0003863,30]
[359301150,1745901057068,-470.0,0.0003863,30]
[359301151,1745901057077,-470.0,0.0003863,30]
[359301152,1745901057087,-470.0,0.0003863,30]
[359301153,1745901057097,-470.0,0.0003863,30]
[359301154,1745901057106,-190.20585007,0.0003863,30]
[359301155,1745901057116,-470.0,0.0003863,30]
[359301156,1745901057125,-470.0,0.0003863,30]
[359301157,1745901057135,-997.79,0.0003863,30]
[359301158,1745901057145,-324.12010585,0.0003863,30]
[359301159,1745901057155,-470.0,0.0003863,30]
[359301160,1745901057165,-470.0,0.0003863,30]
[359301161,1745901057175,-562.36,0.0003863,30]
[359301162,1745901057184,-470.0,0.0003863,30]
[359301163,1745901057194,-470.0,0.0003863,30]
[359301164,1745901057203,-520.47,0.0003863,30]
[359301165,1745901057212,-470.0,0.0003863,30]
[359301166,1745901057276,-470.0,0.0003863,30]
[359301167,1745901057286,-470.0,0.0003863,30]
[359301168,1745901057296,-470.0,0.0003863,30]
[359301169,1745901057305,-1796.71,0.0003863,30]
[359301170,1745901057315,-470.0,0.0003863,30]
[359301171,1745901057324,-470.0,0.0003863,30]
[359301172,1745901057334,-470.0,0.0003863,30]
[359301173,1745901057343,-470.0,0.0003863,30]
[359301174,1745901057351,-470.0,0.0003863,30]
[359301175,1745901057361,-470.0,0.0003863,30]
[359301176,1745901057370,-620.99,0.0003863,30]
[359301177,1745901057379,-231.35730411,0.0003863,30]
[359301178,1745901057388,-470.0,0.0003863,30]
[359301179,1745901057397,-470.0,0.0003863,30]
[359301180,1745901057407,-486.05,0.0003863,30]
[359301181,1745901057416,-470.0,0.0003863,30]
[359301182,1745901057426,-470.0,0.0003863,30]
[359301183,1745901057435,-472.25,0.0003863,30]
[359301184,1745901057445,-470.0,0.0003863,30]
[359301185,1745901057454,-484.21,0.0003863,30]
[359301186,1745901057464,-470.0,0.0003863,30]
[359301187,1745901057473,-470.0,0.0003863,30]
[359301188,1745901057484,-470.0,0.0003863,30]
[359301189,1745901057495,-470.0,0.0003863,30]
[359301190,1745901057505,-1678.15,0.0003863,8]
[359301191,1745901057515,-470.0,0.0003863,30]
[359301192,1745901057524,-470.0,0.0003863,30]
[359301193,1745901057533,-470.0,0.0003863,30]
[359301194,1745901057543,-470.0,0.0003863,30]
[359301195,1745901057553,-470.0,0.0003863,30]
[359301196,1745901057564,-613.58,0.0003863,30]
[359301197,1745901057575,-1433.48,0.0003863,30]
[359301198,1745901057585,-470.0,0.0003863,30]
[359301199,1745901057595,-1275.51,0.0003863,30]
[359301200,1745901057604,-470.0,0.0003863,30]
[359301201,1745901057615,-659.35,0.0003863,30]
[359301202,1745901057625,-470.0,0.0003863,30]
[359301203,1745901057634,-470.0,0.0003863,30]
[359301204,1745901057644,-470.0,0.0003863,30]
[359301205,1745901057654,-470.0,0.0003863,30]
[359301206,1745901057663,-470.0,0.0003863,30]
[359301207,1745901057673,-470.0,0.0003863,30]
[359301208,1745901057683,-178.856008,0.0003863,30]
[359301209,1745901057692,-470.0,0.0003863,30]
[359301210,1745901057701,-652.05,0.0003863,30]
[359301211,1745901057709,-470.0,0.0003863,30]
[359301212,1745901057718,-470.0,0.0003863,30]
[359301213,1745901057727,-470.0,0.0003863,30]
[359301214,1745901057736,-470.0,0.0003863,30]
[359301215,1745901057745,-1676.209236,0.0003863,30]
[359301216,1745901057754,-470.0,0.0003863,30]
[359301217,1745901057763,-470.0,0.0003863,30]
[359301218,1745901057772,-470.0,0.0003863,30]
[359301219,1745901057782,-470.0,0.0003863,30]
[359301220,1745901057791,-470.0,0.0003863,30]
[359301221,1745901057800,-470.0,0.0003863,30]
[359301222,1745901057809,-472.99644063,0.0003863,30]
[359301223,1745901057818,-470.0,0.0003863,30]
[359301224,1745901057827,-1672.93,0.0003863,30]
[359301225,1745901057837,-470.0,0.0003863,30]
[359301226,1745901057846,-561.52981503,0.0003863,30]
[359301227,1745901057855,-470.0,0.0003863,30]
[359301228,1745901057864,-470.0,0.0003863,30]
[359301229,1745901057873,-470.0,0.0003863,30]
[359301230,1745901057882,-470.0,0.0003863,30]
[359301231,1745901057892,-470.0,0.0003863,30]
[359301232,1745901057901,-470.0,0.0003863,30]
[359301233,1745901057910,-470.0,0.0003863,30]
[359301234,1745901057921,-470.0,0.0003863,30]
[359301235,1745901057931,-470.0,0.0003863,30]
[359301236,1745901057940,-470.0,0.0003863,30]
[359301237,1745901057949,-470.0,0.0003863,30]
[359301238,1745901057958,-911.4,0.0003863,30]
[359301239,1745901057967,-470.0,0.0003863,30]
[359301240,1745901057976,-159.67692343,0.0003863,30]
[359301241,1745901057986,-538.58,0.0003863,30]
[359301242,1745901057995,-470.0,0.0003863,30]
[359301243,1745901058004,-470.0,0.0003863,30]
[359301244,1745901058013,-470.0,0.0003863,30]
[359301245,1745901058023,-470.0,0.0003863,30]
[359301246,1745901058032,-470.0,0.0003863,30]
[359301247,1745901058041,-470.0,0.0003863,30]
[359301248,1745901058051,-470.0,0.0003863,30]
[359301249,1745901058060,-470.0,0.0003863,30]
[359301250,1745901058069,-725.42,0.0003863,30]
[359301251,1745901058078,-470.0,0.0003863,30]
[359301252,1745901058087,-470.0,0.0003863,30]
[359301253,1745901058097,-470.0,0.0003863,30]
[359301254,1745901058106,-470.0,0.0003863,30]
[359301255,1745901058116,-470.0,0.0003863,30]
[359301256,1745901058125,-470.0,0.0003863,30]
[359301257,1745901058135,-470.0,0.0003863,30]
[359301258,1745901058144,-470.0,0.0003863,30]
[359301259,1745901058153,-470.0,0.0003863,30]
[359301260,1745901058163,-470.0,0.0003863,30]
[359301261,1745901058172,-470.0,0.0003863,30]
[359301262,1745901058181,-470.0,0.0003863,30]
[359301263,1745901058190,-470.0,0.0003863,30]
[359301264,1745901058200,-2535.723622,0.0003863,30]
[359301265,1745901058210,-470.0,0.0003863,30]
[359301266,1745901058221,-470.0,0.0003863,30]
[359301267,1745901058230,-470.0,0.0003863,30]
[359301268,1745901058243,-470.0,0.0003863,30]
[359301269,1745901058253,-470.0,0.0003863,30]
[359301270,1745901058263,-470.0,0.0003863,30]
[359301271,1745901058273,-470.0,0.0003863,30]
[359301272,1745901058283,-470.0,0.0003863,30]
[359301273,1745901058292,-12944.68,0.0003863,30]
[359301274,1745901058302,-470.0,0.0003863,30]
[359301275,1745901058312,-470.0,0.0003863,30]
[359301276,1745901058322,-470.0,0.0003863,30]
[359301277,1745901058331,-470.0,0.0003863,30]
[359301278,1745901058341,-470.0,0.0003863,30]
[359301279,1745901058350,-470.0,0.0003863,30]
[359301280,1745901058360,-168.642671,0.0003863,30]
[359301281,1745901058369,-470.0,0.0003863,30]
[359301282,1745901058379,-470.0,0.0003863,30]
[359301283,1745901058388,-470.0,0.0003863,30]
[359301284,1745901058398,-470.0,0.0003863,30]
[359301285,1745901058407,-470.0,0.0003863,30]
[359301286,1745901058417,-31801.54,0.0003863,30]
[359301287,1745901058427,-470.0,0.0003863,30]
[359301288,1745901058436,-188.94033998,0.0003863,30]
[359301289,1745901058446,-470.0,0.0003863,30]
[359301290,1745901058455,-470.0,0.0003863,30]
[359301291,1745901058465,-1204.21,0.0003863,30]
[359301292,1745901058475,-470.0,0.0003863,30]
[359301293,1745901058484,-470.0,0.0003863,30]
[359301294,1745901058493,-470.0,0.0003863,30]
[359301295,1745901058503,-470.0,0.0003863,30]
[359301296,1745901058512,-470.0,0.0003863,30]
[359301297,1745901058522,-252.82177727,0.0003863,30]
[359301298,1745901058531,-470.0,0.0003863,30]
[359301299,1745901058540,-586.26,0.0003863,30]
[359301300,1745901058550,-470.0,0.0003863,30]
[359301301,1745901058560,-470.0,0.0003863,30]
[359301302,1745901058574,-300.0,0.0003863,30]
[359301303,1745901058583,-755.01,0.0003863,30]
[359301304,1745901058593,-470.0,0.0003863,30]
[359301305,1745901058602,-2618.19,0.0003863,30]
[359301306,1745901058611,-470.0,0.0003863,30]
[359301307,1745901058621,-470.0,0.0003863,30]
[359301308,1745901058630,-470.0,0.0003863,30]
[359301309,1745901058641,-470.0,0.0003863,30]
[359301310,1745901058650,-600.0,0.0003863,30]
[359301311,1745901058660,-470.0,0.0003863,30]
[359301312,1745901058671,-470.0,0.0003863,30]
[359301313,1745901058681,-470.0,0.0003863,30]
[359301314,1745901058690,-470.0,0.0003863,30]
[359301315,1745901058701,-470.0,0.0003863,30]
[359301316,1745901058712,-552.31,0.0003863,30]
[359301317,1745901058722,-470.0,0.0003863,30]
[359301318,1745901058734,-470.0,0.0003863,30]
[359301319,1745901058743,-513.7,0.0003863,30]
[359301320,1745901058753,-601.89,0.0003863,30]
[359301321,1745901058765,-470.0,0.0003863,30]
[359301322,1745901058778,-623.02,0.0003863,30]
[359301323,1745901058788,-2140.73,0.0003863,30]
[359301324,1745901058798,-251.062076,0.0003863,30]
[359301325,1745901058808,-470.0,0.0003863,30]
[359301326,1745901058817,-543.58,0.0003863,30]
[359301327,1745901058827,-911.67,0.0003863,30]
[359301328,1745901058838,-503.17,0.0003863,30]
[359301329,1745901058849,-470.0,0.0003863,30]
[359301330,1745901058862,-470.0,0.0003863,30]
[359301331,1745901058872,-470.0,0.0003863,30]
[359301332,1745901058883,-470.0,0.0003863,30]
[359301333,1745901058895,-470.0,0.0003863,30]
[359301334,1745901058907,-944.37,0.0003863,30]
[359301335,1745901058918,-470.0,0.0003863,30]
[359301336,1745901058929,-10130.66,0.0003863,30]
[359301337,1745901058939,-491.42957727,0.0003863,30]
[359301338,1745901058949,-470.0,0.0003863,30]
[359301339,1745901058959,-524.09,0.0003863,30]
[359301340,1745901058969,-470.0,0.0003863,30]
[359301341,1745901058979,-658.78,0.0003863,30]
[359301342,1745901058989,-470.0,0.0003863,30]
[359301343,1745901058998,-884.44,0.0003863,30]
[359301344,1745901059008,-470.0,0.0003863,30]
[359301345,1745901059018,-179.707896,0.0003863,30]
[359301346,1745901059028,-470.0,0.0003863,30]
[359301347,1745901059037,-470.0,0.0003863,30]
[359301348,1745901059047,-900.5,0.0003863,30]
[359301349,1745901059057,-6755.53,0.0003863,30]
[359301350,1745901059067,-470.0,0.0003863,30]
[359301351,1745901059077,-470.0,0.0003863,30]
[359301352,1745901059086,-470.0,0.0003863,30]
[359301353,1745901059096,-470.0,0.0003863,30]
[359301354,1745901059105,-470.0,0.0003863,30]
[359301355,1745901059115,-470.0,0.0003863,30]
[359301356,1745901059127,-470.0,0.0003863,30]
[359301357,1745901059137,-470.0,0.0003863,30]
[359301358,1745901059147,-538.43,0.0003863,30]
[359301359,1745901059156,-470.0,0.0003863,30]
[359301360,1745901059166,-470.0,0.0003863,30]
[359301361,1745901059176,-470.0,0.0003863,30]
[359301362,1745901059185,-470.0,0.0003863,30]
[359301363,1745901059195,-519.94,0.0003863,30]
[359301364,1745901059205,-470.0,0.0003863,30]
[359301365,1745901059215,-386.27189821,0.0003863,30]
[359301366,1745901059225,-470.0,0.0003863,30]
[359301367,1745901059235,-470.0,0.0003863,30]
[359301368,1745901059244,-470.0,0.0003863,30]
[359301369,1745901059254,-668.03,0.0003863,30]
[359301370,1745901059264,-470.0,0.0003863,30]
[359301371,1745901059273,-470.0,0.0003863,30]
[359301372,1745901059284,-470.0,0.0003863,30]
[359301373,1745901059294,-470.0,0.0003863,30]
[359301374,1745901059307,-519.13,0.0003863,30]
[359301375,1745901059317,-497.64,0.0003863,30]
[359301376,1745901059327,-470.0,0.0003863,30]
[359301377,1745901059337,-470.0,0.0003863,30]
[359301378,1745901059347,-470.0,0.0003863,2]
[359301379,1745901059357,-470.0,0.0003863,30]
[359301380,1745901059367,-470.0,0.0003863,30]
[359301381,1745901059377,-470.0,0.0003863,30]
[359301382,1745901059387,-1055.72,0.0003863,30]
[359301383,1745901059397,-470.0,0.0003863,30]
[359301384,1745901059406,-470.0,0.0003863,30]
[359301385,1745901059416,-470.0,0.0003863,30]
[359301386,1745901059426,-1993.78,0.0003863,30]
[359301387,1745901059437,-465.02011543,0.0003863,30]
[359301388,1745901059447,-470.0,0.0003863,30]
[359301389,1745901059457,-470.0,0.0003863,30]
[359301390,1745901059467,-470.0,0.0003863,30]
[359301391,1745901059477,-470.0,0.0003863,30]
[359301392,1745901059487,-470.0,0.0003863,30]
[359301393,1745901059496,-606.62,0.0003863,30]
[359301394,1745901059506,-1778.44,0.0003863,30]
[359301395,1745901059516,-470.0,0.0003863,30]
[359301396,1745901059526,-470.0,0.0003863,30]
[359301397,1745901059536,-470.0,0.0003863,30]
[359301398,1745901059546,-4726.83,0.0003863,30]
[359301399,1745901059556,-470.0,0.0003863,30]
[359301400,1745901059569,-470.0,0.0003863,30]
[359301401,1745901059578,-560.84,0.0003863,30]
[359301402,1745901059588,-470.0,0.0003863,30]
[359301403,1745901059598,-577.51,0.0003863,30]
[359301404,1745901059607,-470.0,0.0003863,30]
[359301405,1745901059617,-470.0,0.0003863,30]
[359301406,1745901059627,-300.0,0.0003863,30]
[359301407,1745901059637,-470.0,0.0003863,30]
[359301408,1745901059646,-470.0,0.0003863,30]
[359301409,1745901059656,-470.0,0.0003863,30]
[359301410,1745901059665,-470.0,0.0003863,30]
[359301411,1745901059675,-470.0,0.0003863,30]
[359301412,1745901059685,-470.0,0.0003863,30]
[359301413,1745901059694,-470.0,0.0003863,30]
[359301414,1745901059704,-933.2,0.0003863,30]
[359301415,1745901059713,-470.0,0.0003863,30]
[359301416,1745901059723,-470.0,0.0003863,30]
[359301417,1745901059732,-664.88,0.0003863,30]
[359301418,1745901059742,-470.0,0.0003863,30]
[359301419,1745901059751,-562.16,0.0003863,30]
[359301420,1745901059761,-300.0,0.0003863,30]
[359301421,1745901059770,-7326.61,0.0003863,2]
[359301422,1745901059780,-470.0,0.0003863,30]
[359301423,1745901059790,-470.0,0.0003863,30]
[359301424,1745901059800,-470.0,0.0003863,30]
[359301425,1745901059811,-4049.93,0.0003863,30]
[359301426,1745901059821,-470.0,0.0003863,30]
[359301427,1745901059831,-470.0,0.0003863,30]
[359301428,1745901059840,-470.0,0.0003863,30]
[359301429,1745901059850,-436.34014459,0.0003863,30]
[359301430,1745901059860,-349.93112085,0.0003863,30]
[359301431,1745901059870,-470.0,0.0003863,30]
[359301432,1745901059880,-470.0,0.0003863,30]
[359301433,1745901059889,-470.0,0.0003863,30]
[359301434,1745901059899,-470.0,0.0003863,30]
[359301435,1745901059909,-470.0,0.0003863,30]
[359301436,1745901059918,-470.0,0.0003863,30]
[359301437,1745901059928,-470.0,0.0003863,30]
[359301438,1745901059937,-470.0,0.0003863,30]
[359301439,1745901059947,-470.0,0.0003863,30]
[359301440,1745901059956,-470.0,0.0003863,30]
[359301441,1745901059966,-470.0,0.0003863,30]
[359301442,1745901059975,-470.0,0.0003863,30]
[359301443,1745901059986,-470.0,0.0003863,30]
[359301444,1745901059995,-1021.77,0.0003863,30]
[359301445,1745901060006,-1844.19,0.0003863,30]
[359301446,1745901060015,-470.0,0.0003863,30]
[359301447,1745901060025,-470.0,0.0003863,30]
[359301448,1745901060034,-470.0,0.0003863,30]
[359301449,1745901060044,-470.0,0.0003863,30]
[359301450,1745901060055,-470.0,0.0003863,30]
[359301451,1745901060065,-470.0,0.0003863,30]
[359301452,1745901060075,-470.0,0.0003863,30]
[359301453,1745901060084,-470.0,0.0003863,30]
[359301454,1745901060094,-470.0,0.0003863,30]
[359301455,1745901060104,-470.0,0.0003863,30]
[359301456,1745901060114,-470.0,0.0003863,30]
[359301457,1745901060123,-1080.03,0.0003863,120]
[359301458,1745901060133,-470.0,0.0003863,30]
[359301459,1745901060145,-470.0,0.0003863,30]
[359301460,1745901060157,-470.0,0.0003863,30]
[359301461,1745901060169,-470.0,0.0003863,30]
[359301462,1745901060179,-528.7,0.0003863,30]
[359301463,1745901060190,-470.0,0.0003863,30]
[359301464,1745901060201,-470.0,0.0003863,30]
[359301465,1745901060211,-470.0,0.0003863,30]
[359301466,1745901060223,-470.0,0.0003863,30]
[359301467,1745901060233,-470.0,0.0003863,5]
[359301468,1745901060244,-166.675126,0.0003863,30]
[359301469,1745901060255,-470.0,0.0003863,16]
[359301470,1745901060265,-470.0,0.0003863,30]
[359301471,1745901060275,-7851.451949,0.0003863,30]
[359301472,1745901060285,-611.23,0.0003863,30]
[359301473,1745901060295,-470.0,0.0003863,30]
[359301474,1745901060304,-470.0,0.0003863,30]
[359301475,1745901060315,-470.0,0.0003863,30]
[359301476,1745901060325,-470.0,0.0003863,2]
[359301477,1745901060335,-470.0,0.0003863,30]
[359301478,1745901060345,-568.5,0.0003863,30]
[359301479,1745901060355,-3281.79,0.0003863,30]
[359301480,1745901060373,-549.46,0.0003863,30]
[359301481,1745901060385,-470.0,0.0003863,30]
[359301482,1745901060396,-470.0,0.0003863,30]
[359301483,1745901060407,-470.0,0.0003863,30]
[359301484,1745901060417,-470.0,0.0003863,30]
[359301485,1745901060428,-470.0,0.0003863,2]
[359301486,1745901060438,-470.0,0.0003863,30]
[359301487,1745901060449,-470.0,0.0003863,30]
[359301488,1745901060459,-470.0,0.0003863,30]
[359301489,1745901060469,-470.0,0.0003863,30]
[359301490,1745901060482,-470.0,0.0003863,30]
[359301491,1745901060493,-470.0,0.0003863,30]
[359301492,1745901060503,-470.0,0.0003863,30]
[359301493,1745901060514,-470.0,0.0003863,30]
[359301494,1745901060524,-599.86423584,0.00038656,15]
[359301495,1745901060534,-444.0,0.00038657,30]
[359301496,1745901060544,-177.31378554,0.00038657,30]
[359301497,1745901060554,-939.0,0.00038657,30]
[359301498,1745901060566,-500.0,0.00038657,30]
[359301499,1745901060576,-152.0,0.00038667,8]
[359301500,1745901060586,-165.16793766,0.00038673,5]
[359301501,1745901060597,-387.12857963,0.00038673,7]
[359301502,1745901060607,-444.0,0.00038685,30]
[359301503,1745901060618,-939.0,0.00038685,30]
[359301504,1745901060628,-500.0,0.00038685,30]
[359301505,1745901060638,-280.47,0.00038689,2]
[359301506,1745901060649,-402.61240974,0.000387,120]
[359301507,1745901060660,-231.787,0.00038709,3]
[359301508,1745901060670,-2008.5013,0.00038709,3]
[359301509,1745901060681,-2006.9261,0.00038709,3]
[359301510,1745901060693,-444.0,0.00038712,30]
[359301511,1745901060703,-939.0,0.00038712,30]
[359301512,1745901060714,-500.0,0.00038712,30]
[359301513,1745901060725,-444.0,0.0003874,30]
[359301514,1745901060737,-939.0,0.0003874,30]
[359301515,1745901060749,-500.0,0.0003874,30]
[359301516,1745901060761,-298.26089446,0.0003874,2]
[359301517,1745901060772,-200.0,0.0003874,2]
[359301518,1745901060784,-200.0,0.0003874,2]
[359301519,1745901060794,-153.01,0.00038752,2]
[359301520,1745901060808,-444.0,0.00038767,30]
[359301521,1745901060819,-939.0,0.00038767,30]
[359301522,1745901060828,-315.53373444,0.00038767,30]
[359301523,1745901060838,-509.0,0.00038767,90]
[359301524,1745901060848,-2621.91655391,0.00038789,22]
[359301525,1745901060858,-444.0,0.00038794,30]
[359301526,1745901060868,-939.0,0.00038794,30]
[359301527,1745901060878,-800.0,0.00038812,7]
[359301528,1745901060888,-444.0,0.00038822,30]
[359301529,1745901060898,-939.0,0.00038822,30]
[359301530,1745901060908,-444.0,0.00038849,30]
[359301531,1745901060918,-939.0,0.00038849,30]
[359301532,1745901060927,-2110.0,0.00038856,2]
[359301533,1745901060937,-350.429,0.00038865,2]
[359301534,1745901060948,-444.0,0.00038877,30]
[359301535,1745901060958,-939.0,0.00038877,30]
[359301536,1745901060968,-18031.80491029,0.0003888,4]
[359301537,1745901060978,-1028.38,0.00038899,30]
[359301538,1745901060988,-1028.38,0.00038899,30]
[359301539,1745901060998,-1028.38,0.00038899,30]
[359301540,1745901061009,-1028.38,0.00038899,30]
[359301541,1745901061019,-1028.48477311,0.00038899,30]
[359301542,1745901061029,-2000.0,0.000389,10]
[359301543,1745901061040,-207.0,0.000389,30]
[359301544,1745901061051,-208.0,0.000389,30]
[359301545,1745901061061,-206.0,0.000389,30]
[359301546,1745901061072,-467.48187374,0.00038903,7]
[359301547,1745901061083,-444.0,0.00038904,30]
[359301548,1745901061095,-939.0,0.00038904,30]
[359301549,1745901061307,-470.0,0.00038904,30]
[359301550,1745901061318,-115879.03,0.00038904,7]
[359301551,1745901061327,-2553.35,0.00038904,30]
[359301552,1745901061337,-470.0,0.00038904,30]
[359301553,1745901061347,-470.0,0.00038904,30]
[359301554,1745901061356,-485.05138493,0.00038904,30]
[359301555,1745901061365,-719.66,0.00038904,30]
[359301556,1745901061375,-470.0,0.00038904,30]
[359301557,1745901061384,-470.0,0.00038904,30]
[359301558,1745901061394,-354.07937539,0.00038904,30]
[359301559,1745901061403,-470.0,0.00038904,30]
[359301560,1745901061413,-470.0,0.00038904,30]
[359301561,1745901061422,-470.0,0.00038904,30]
[359301562,1745901061432,-470.0,0.00038904,30]
[359301563,1745901061442,-470.0,0.00038904,30]
[359301564,1745901061451,-470.0,0.00038904,30]
[359301565,1745901061461,-470.0,0.00038904,30]
[359301566,1745901061470,-250.0,0.00038904,30]
[359301567,1745901061480,-470.0,0.00038904,30]
[359301568,1745901061489,-576.58,0.00038904,30]
[359301569,1745901061499,-616.47681856,0.00038904,30]
[359301570,1745901061508,-470.0,0.00038904,30]
[359301571,1745901061521,-470.0,0.00038904,30]
[359301572,1745901061531,-470.0,0.00038904,30]
[359301573,1745901061542,-470.0,0.00038904,30]
[359301574,1745901061552,-470.0,0.00038904,30]
[359301575,1745901061564,-447.02197845,0.00038904,30]
[359301576,1745901061579,-470.0,0.00038904,30]
[359301577,1745901061589,-470.0,0.00038904,30]
[359301578,1745901061599,-470.0,0.00038904,30]
[359301579,1745901061608,-584.0714064,0.00038904,30]
[359301580,1745901061618,-470.0,0.00038904,30]
[359301581,1745901061628,-470.0,0.00038904,30]
[359301582,1745901061637,-470.0,0.00038904,30]
[359301583,1745901061647,-500.0,0.00038904,30]
[359301584,1745901061656,-470.0,0.00038904,30]
[359301585,1745901061666,-470.0,0.00038904,30]
[359301586,1745901061675,-470.0,0.00038904,7]
[359301587,1745901061685,-470.0,0.00038904,30]
[359301588,1745901061694,-470.7,0.00038904,30]
[359301589,1745901061704,-470.0,0.00038904,30]
[359301590,1745901061713,-470.0,0.00038904,2]
[359301591,1745901061723,-470.0,0.00038904,30]
[359301592,1745901061732,-340.58010397,0.00038904,30]
[359301593,1745901061742,-470.0,0.00038904,30]
[359301594,1745901061751,-470.0,0.00038904,30]
[359301595,1745901061761,-470.0,0.00038904,30]
[359301596,1745901061770,-470.0,0.00038904,30]
[359301597,1745901061780,-470.0,0.00038904,30]
[359301598,1745901061789,-470.0,0.00038904,30]
[359301599,1745901061799,-470.0,0.00038904,30]
[359301600,1745901061811,-470.0,0.00038904,30]
[359301601,1745901061821,-470.0,0.00038904,30]
[359301602,1745901061831,-470.0,0.00038904,30]
[359301603,1745901061841,-470.0,0.00038904,30]
[359301604,1745901061851,-470.0,0.00038904,30]
[359301605,1745901061861,-470.0,0.00038904,30]
[359301606,1745901061872,-514.87,0.00038904,30]
[359301607,1745901061883,-561.85,0.00038904,30]
[359301608,1745901061893,-470.0,0.00038904,30]
[359301609,1745901061903,-470.0,0.00038904,30]
[359301610,1745901061912,-470.0,0.00038904,30]
[359301611,1745901061922,-470.0,0.00038904,30]
[359301612,1745901061932,-1768.4,0.00038904,30]
[359301613,1745901061941,-641.31,0.00038904,2]
[359301614,1745901061951,-508.75,0.00038904,30]
[359301615,1745901061961,-470.0,0.00038904,30]
[359301616,1745901061970,-470.0,0.00038904,30]
[359301617,1745901061979,-470.0,0.00038904,30]
[359301618,1745901061989,-470.0,0.00038904,30]
[359301619,1745901061999,-470.0,0.00038904,30]
[359301620,1745901062009,-527.69,0.00038904,30]
[359301621,1745901062019,-470.0,0.00038904,30]
[359301622,1745901062030,-470.0,0.00038904,30]
[359301623,1745901062040,-714.85,0.00038904,30]
[359301624,1745901062050,-470.0,0.00038904,30]
[359301625,1745901062060,-470.0,0.00038904,30]
[359301626,1745901062070,-470.0,0.00038904,30]
[359301627,1745901062080,-470.0,0.00038904,30]
[359301628,1745901062090,-470.0,0.00038904,30]
[359301629,1745901062099,-470.0,0.00038904,30]
[359301630,1745901062108,-470.0,0.00038904,2]
[359301631,1745901062118,-470.0,0.00038904,30]
[359301632,1745901062128,-470.0,0.00038904,2]
[359301633,1745901062137,-470.0,0.00038904,30]
[359301634,1745901062147,-257.79126365,0.00038904,30]
[359301635,1745901062157,-470.0,0.00038904,30]
[359301636,1745901062166,-470.0,0.00038904,30]
[359301637,1745901062175,-470.0,0.00038904,30]
[359301638,1745901062184,-470.0,0.00038904,30]
[359301639,1745901062194,-470.0,0.00038904,30]